fUST/lending_fUST_20240805
["ID","MTS","AMOUNT","RATE_DAILY","PERIOD"]
[334192120,1722821445855,-428.659822,0.00021905,2]
[334192122,1722821445864,-151.0,0.00021905,2]
[334192124,1722821445875,-151.0,0.00021905,2]
[334192126,1722821445885,-500.0,0.00021906,7]
[334192128,1722821445894,-290.3896961,0.00021906,2]
[334192130,1722821445903,-29719.53468543,0.00021906,2]
[334192132,1722821445913,-780.99414722,0.00021906,2]
[334192134,1722821445923,-154.82195475,0.00021906,2]
[334192136,1722821445932,-290.41326156,0.00021906,2]
[334192138,1722821445946,-942.68890731,0.00021906,2]
[334192140,1722821445956,-1643.04146398,0.00021916,7]
[334192142,1722821445965,-9652.45576997,0.00021916,2]
[334192143,1722821445975,-23612.3448115,0.0002199,3]
[334192145,1722821445984,-3538.8,0.00022,7]
[334192147,1722821445993,-110222.74,0.00022,14]
[334192149,1722821446003,-151.0,0.00022,7]
[334192151,1722821446012,-151.0,0.00022,7]
[334192153,1722821446022,-151.0,0.00022,7]
[334192155,1722821446031,-151.0,0.00022,7]
[334192157,1722821446041,-151.0,0.00022,7]
[334192159,1722821446050,-363.89619293,0.00022014,2]
[334192161,1722821446061,-5880.88262027,0.00022068,2]
[334192163,1722821446071,-363.89619293,0.00022222,2]
[334192165,1722821446081,-2137.28,0.00022272,2]
[334192167,1722821446090,-151.0,0.00022272,7]
[334192169,1722821446100,-150.112233,0.000223,3]
[334192171,1722821446110,-5880.88262027,0.00022389,2]
[334192173,1722821446119,-151.0,0.00022403,2]
[334192175,1722821446128,-151.0,0.00022403,2]
[334192177,1722821446138,-400.92,0.000225,31]
[334192179,1722821446148,-400.92,0.000225,31]
[334192181,1722821446157,-400.92,0.000225,31]
[334192183,1722821446166,-124.24333502,0.000225,31]
[334192205,1722821446306,-276.67666498,0.000225,31]
[334192208,1722821446316,-400.92,0.000225,31]
[334192211,1722821446325,-400.92,0.000225,31]
[334192213,1722821446337,-400.92,0.000225,31]
[334192215,1722821446346,-400.92,0.000225,31]
[334192217,1722821446356,-400.92,0.000225,31]
[334192219,1722821446366,-400.92,0.000225,31]
[334192221,1722821446376,-400.92,0.000225,31]
[334192223,1722821446386,-400.92,0.000225,31]
[334192225,1722821446396,-400.92,0.000225,31]
[334192226,1722821446406,-400.92,0.000225,31]
[334192228,1722821446416,-400.92,0.000225,31]
[334192230,1722821446428,-400.92,0.000225,31]
[334192232,1722821446446,-400.92,0.000225,31]
[334192234,1722821446456,-400.92,0.000225,31]
[334192236,1722821446467,-400.92,0.000225,31]
[334192238,1722821446477,-400.92,0.000225,31]
[334192240,1722821446487,-4062.31514402,0.00022618,2]
[334192242,1722821446499,-1818.56747628,0.00022618,2]
[334192244,1722821446508,-363.89619296,0.00022673,2]
[334192246,1722821446518,-167.59252921,0.00022679,2]
[334192248,1722821446527,-200.0,0.00022965,2]
[334192250,1722821446537,-1304.0,0.00022989,6]
[334192252,1722821446546,-151.0,0.0002299,7]
[334192254,1722821446556,-7870.78160382,0.0002299,3]
[334192256,1722821446566,-151.0,0.0002299,7]
[334192257,1722821446576,-151.0,0.0002299,7]
[334192259,1722821446585,-151.0,0.0002299,7]
[334192261,1722821446595,-428.659822,0.0002299,7]
[334192263,1722821446604,-428.659822,0.0002299,7]
[334192265,1722821446614,-151.0,0.0002299,7]
[334192267,1722821446625,-151.0,0.0002299,7]
[334192269,1722821446634,-2137.28,0.00022999,2]
[334192271,1722821446647,-4392.66975166,0.00023,2]
[334192273,1722821446658,-1056.81280205,0.00023,6]
[334192276,1722821446672,-943.18719795,0.00023,6]
[334192278,1722821446689,-2000.0,0.00023,7]
[334192280,1722821446699,-10122.81280205,0.00023,14]
[334192282,1722821446711,-728.59719795,0.00023,14]
[334192284,1722821446721,-710.388346,0.00023,7]
[334192286,1722821446732,-180.818156,0.00023,7]
[334192288,1722821446743,-180.818156,0.00023,7]
[334192290,1722821446753,-151.0,0.00023,7]
[334192292,1722821446762,-190.789441,0.00023,7]
[334192294,1722821446773,-151.0,0.00023,3]
[334192296,1722821446782,-190.789441,0.00023,7]
[334192298,1722821446792,-151.0,0.00023,3]
[334192300,1722821446802,-1000.0,0.00023,2]
[334192302,1722821446813,-151.0,0.00023067,7]
[334192304,1722821446823,-200.0,0.00023082,2]
[334192306,1722821446833,-153.9111627,0.000236,2]
[334192308,1722821446843,-463.399784,0.0002369,7]
[334192310,1722821446853,-463.399784,0.0002369,7]
[334192312,1722821446863,-151.0,0.0002369,7]
[334192314,1722821446874,-15741.5632076,0.0002369,3]
[334192316,1722821446884,-160.0,0.00023699,2]
[334192318,1722821446895,-3538.8,0.000237,7]
[334192320,1722821446905,-97487.97275787,0.000237,14]
[334192322,1722821446918,-489.355,0.000237,14]
[334192324,1722821446930,-1362.52875357,0.000237,14]
[334192385,1722821447563,-273.37336231,9.9e-05,2]
[334192386,1722821447574,-2162.60520141,0.00019167,2]
[334192387,1722821447585,-951.80625463,0.00019256,2]
[334192388,1722821447596,-807.96586902,0.00019256,2]
[334192390,1722821447606,-1382.92970052,0.00019256,2]
[334192392,1722821447616,-519.64257274,0.00019477,2]
[334192394,1722821447626,-426.99038561,0.00019477,2]
[334192396,1722821447636,-196.48473354,0.00019547,2]
[334192398,1722821447650,-664.2961566,0.00019999,2]
[334192400,1722821447661,-296.95255386,0.00020721,2]
[334192402,1722821447671,-154.91944152,0.00021906,2]
[334192405,1722821447685,-159.25334668,0.00021906,2]
[334192407,1722821447696,-206.42629198,0.00021906,2]
[334192409,1722821447706,-10873.35412953,0.000237,14]
[334192411,1722821447717,-9.52935903,0.000237,14]
[334192413,1722821447727,-292.299016,0.000237,7]
[334192415,1722821447737,-151.0,0.000237,7]
[334192417,1722821447746,-151.0,0.000237,7]
[334192419,1722821447757,-295.17777,0.000237,7]
[334192421,1722821447767,-151.0,0.000237,7]
[334192423,1722821447777,-151.0,0.000237,7]
[334192425,1722821447787,-151.0,0.000237,7]
[334192427,1722821447797,-272.468508,0.000237,7]
[334192429,1722821447806,-151.0,0.000237,7]
[334192431,1722821447816,-306.972761,0.000237,7]
[334192433,1722821447826,-306.972761,0.000237,7]
[334192435,1722821447836,-151.0,0.000237,7]
[334192446,1722821447945,-151.0,0.000237,7]
[334192448,1722821447955,-151.0,0.000237,7]
[334192450,1722821447965,-372.625505,0.00023718,2]
[334192452,1722821447976,-397.77,0.00023767,2]
[334192454,1722821447985,-15741.5632076,0.00023783,3]
[334192456,1722821447996,-463.399784,0.00023793,7]
[334192459,1722821448006,-463.399784,0.00023793,7]
[334192460,1722821448015,-710.388346,0.00023793,7]
[334192463,1722821448026,-180.818156,0.00023793,7]
[334192465,1722821448036,-180.818156,0.00023793,7]
[334192467,1722821448047,-151.0,0.00023793,7]
[334192469,1722821448057,-190.789441,0.00023793,7]
[334192471,1722821448068,-190.789441,0.00023793,7]
[334192472,1722821448078,-151.0,0.00023793,7]
[334192475,1722821448087,-151.0,0.00023793,7]
[334192476,1722821448098,-151.0,0.00023793,7]
[334192478,1722821448107,-428.659822,0.00023793,7]
[334192480,1722821448118,-428.659822,0.00023793,7]
[334192482,1722821448128,-151.0,0.00023793,7]
[334192484,1722821448138,-151.0,0.00023793,7]
[334192487,1722821448148,-89806.89764456,0.00023794,30]
[334192489,1722821448158,-1672.87782031,0.00023794,5]
[334192491,1722821448168,-2137.28,0.00023796,2]
[334192493,1722821448178,-7870.78160382,0.0002389,3]
[334192495,1722821448193,-17456.71911672,0.000239,2]
[334192497,1722821448203,-2137.28,0.00023947,2]
[334192498,1722821448212,-500.4090008,0.00024,2]
[334192500,1722821448222,-150.0,0.00024,7]
[334192502,1722821448232,-150.0,0.00024,7]
[334192504,1722821448242,-318.30428521,0.00024,2]
[334192506,1722821448252,-4374.40302407,0.00024,30]
[334192508,1722821448263,-7089.57084791,0.00024,30]
[334192510,1722821448274,-198.0,0.00024,2]
[334192512,1722821448283,-240.0,0.00024,2]
[334192514,1722821448293,-588.4884319,0.00024233,2]
[334192516,1722821448303,-400.0,0.00024335,2]
[334192518,1722821448312,-200.25504166,0.00024452,2]
[334192520,1722821448322,-1500.0,0.000245,2]
[334192522,1722821448332,-10851.41,0.000245,14]
[334192524,1722821448341,-2137.28,0.00024589,2]
[334192526,1722821448350,-400.92,0.000246,31]
[334192528,1722821448361,-400.92,0.000246,31]
[334192530,1722821448370,-400.92,0.000246,31]
[334192532,1722821448380,-400.92,0.000246,31]
[334192534,1722821448390,-400.92,0.000246,31]
[334192537,1722821448400,-400.92,0.000246,31]
[334192539,1722821448410,-400.92,0.000246,31]
[334192540,1722821448420,-400.92,0.000246,31]
[334192542,1722821448430,-400.92,0.000246,31]
[334192544,1722821448445,-400.92,0.000246,31]
[334192546,1722821448455,-400.92,0.000246,31]
[334192548,1722821448465,-400.92,0.000246,31]
[334192550,1722821448474,-400.92,0.000246,31]
[334192552,1722821448484,-400.92,0.000246,31]
[334192554,1722821448493,-400.92,0.000246,31]
[334192556,1722821448504,-400.92,0.000246,31]
[334192558,1722821448513,-400.92,0.000246,31]
[334192560,1722821448523,-400.92,0.000246,31]
[334192562,1722821448533,-400.92,0.000246,31]
[334192564,1722821448543,-400.92,0.000246,31]
[334192566,1722821448552,-151.0,0.000246,7]
[334192568,1722821448562,-500.0,0.00024658,2]
[334192570,1722821448571,-380.0,0.00024658,2]
[334192573,1722821448583,-200.0,0.00024658,2]
[334192575,1722821448593,-200.0,0.00024658,15]
[334192577,1722821448602,-240.0,0.00024726,2]
[334192578,1722821448612,-1087.52759037,0.00024733,2]
[334192580,1722821448622,-82424.07226281,0.0002484,3]
[334192585,1722821448654,-174.54270234,0.00019999,2]
[334192587,1722821448663,-461.92689766,0.0002484,3]
[334192784,1722821473430,150.5,0.0002529,120]
[334192785,1722821473921,150.5,0.0002528,120]
[334192786,1722821474788,150.5,0.0002527,120]
[334192795,1722821594557,287.56,0.00021906,120]
[334192835,1722822006283,1061.54700085,0.00027,120]
[334192843,1722822245347,1150.6,0.00025,60]
[334192844,1722822272757,612.5,0.00027,120]
[334192854,1722822390141,232.86679735,0.000249,120]
[334192915,1722822633158,-273.37336231,9.321e-05,2]
[334192917,1722822633169,-267.10727278,0.00014247,2]
[334192932,1722822638978,-273.37336231,9.9e-05,2]
[334192933,1722822638988,-215.08445822,0.00014247,2]
[334192934,1722822638997,-619.94217947,0.00014509,2]
[334192936,1722822639756,-24280.05782053,0.00014509,2]
[334192938,1722822639766,-554.2342331,0.00014583,2]
[334192942,1722822639777,-3000.0,0.00014727,2]
[334192946,1722822639787,-200.0,0.00014795,2]
[334192949,1722822639798,-300.0,0.00016112,2]
[334192952,1722822639810,-500.0,0.00016723,2]
[334192956,1722822639819,-500.0,0.00016723,2]
[334192959,1722822639829,-500.0,0.00016723,2]
[334192963,1722822639839,-166.66898389,0.00016723,2]
[334192967,1722822639849,-500.0,0.00016723,2]
[334192972,1722822639859,-500.0,0.00016723,2]
[334192976,1722822639869,-500.0,0.00016723,2]
[334192979,1722822639879,-500.0,0.00016723,2]
[334192982,1722822639889,-500.0,0.00016723,2]
[334192983,1722822639899,-500.0,0.00016723,2]
[334192986,1722822639908,-500.0,0.00016723,2]
[334192991,1722822639917,-324.87564636,0.00016723,2]
[334192993,1722822639927,-186.54732487,0.00016723,2]
[334192996,1722822639936,-500.0,0.00016723,2]
[334192998,1722822639945,-500.0,0.00016723,2]
[334193001,1722822639954,-500.0,0.00016723,2]
[334193004,1722822639963,-3693.97190567,0.00016724,2]
[334193006,1722822639973,-420.0,0.00017723,2]
[334193009,1722822639982,-1038.176,0.00017743,2]
[334193012,1722822639991,-150.215,0.00017743,2]
[334193015,1722822640001,-243.79704941,0.00018,2]
[334193017,1722822640011,-9642.56191171,0.00018316,2]
[334193019,1722822640021,-7001.77703298,0.00018356,2]
[334193022,1722822640031,-152.36,0.000185,31]
[334193024,1722822640042,-152.36,0.000185,31]
[334193026,1722822640051,-152.36,0.000185,31]
[334193027,1722822640063,-152.36,0.000185,31]
[334193028,1722822640073,-152.36,0.000185,31]
[334193029,1722822640082,-152.36,0.000185,31]
[334193030,1722822640091,-152.36,0.000185,31]
[334193031,1722822640101,-152.36,0.000185,31]
[334193032,1722822640112,-152.36,0.000185,31]
[334193033,1722822640122,-152.36,0.000185,31]
[334193034,1722822640143,-152.36,0.000185,31]
[334193035,1722822640153,-152.36,0.000185,31]
[334193036,1722822640163,-152.36,0.000185,31]
[334193037,1722822640172,-152.36,0.000185,31]
[334193038,1722822640182,-152.36,0.000185,31]
[334193039,1722822640192,-152.36,0.000185,31]
[334193040,1722822640202,-152.36,0.000185,31]
[334193041,1722822640212,-152.36,0.000185,31]
[334193042,1722822640222,-2278.204521,0.00018667,3]
[334193043,1722822640232,-2278.204521,0.00018679,3]
[334193044,1722822640242,-573.15262334,0.00018773,2]
[334193045,1722822640252,-1438.29474334,0.00018825,2]
[334193046,1722822640262,-269.69558364,0.00018845,2]
[334193047,1722822640272,-188.24924053,0.00018845,2]
[334193048,1722822640282,-154.79103211,0.00018845,2]
[334193049,1722822640292,-209.20156569,0.00018899,2]
[334193050,1722822640304,-533.96699452,0.0001891,2]
[334193051,1722822640315,-1204.0988853,0.00018941,2]
[334193052,1722822640325,-984.99,0.00018944,2]
[334193053,1722822640336,-165.54898858,0.00018945,2]
[334193054,1722822640346,-1643.15842058,0.00018989,7]
[334193055,1722822640356,-35012.4181319,0.00018999,2]
[334193056,1722822640365,-2909.62054661,0.00019039,2]
[334193058,1722822640375,-250.0,0.00019041,2]
[334193060,1722822640385,-668.51,0.00019091,3]
[334193061,1722822640403,-20759.5327798,0.00019101,2]
[334193062,1722822640422,-1162.86940617,0.00019147,2]
[334193063,1722822640441,-277.18370616,0.00019155,2]
[334193064,1722822640456,-3087.63872233,0.00019155,2]
[334193065,1722822640470,-209.86612614,0.00019166,2]
[334193066,1722822640486,-409.78908459,0.00019166,2]
[334193067,1722822640502,-160.6861834,0.00019166,2]
[334193068,1722822640517,-181.30097861,0.00019166,2]
[334193069,1722822640533,-500.0,0.00019166,2]
[334193070,1722822640547,-500.0,0.00019166,2]
[334193071,1722822640567,-500.0,0.00019166,2]
[334193072,1722822640581,-500.0,0.00019166,2]
[334193073,1722822640597,-500.0,0.00019166,2]
[334193074,1722822640611,-500.0,0.00019166,2]
[334193075,1722822640625,-500.0,0.00019166,2]
[334193076,1722822640635,-500.0,0.00019166,2]
[334193077,1722822640648,-500.0,0.00019166,2]
[334193078,1722822640661,-500.0,0.00019166,2]
[334193079,1722822640676,-500.0,0.00019166,2]
[334193080,1722822640692,-500.0,0.00019166,2]
[334193083,1722822640708,-3705.03133541,0.00019167,2]
[334193085,1722822640723,-7775.14481469,0.00019167,2]
[334193088,1722822640736,-1794.59755427,0.00019167,2]
[334193089,1722822640747,-29719.53468543,0.00019167,2]
[334193091,1722822640758,-2124.51614001,0.00019167,2]
[334193094,1722822640771,-1715.67948791,0.00019167,2]
[334193096,1722822640784,-42341.71391136,0.00019177,2]
[334193097,1722822640798,-1610.68802731,0.00019177,2]
[334193098,1722822640812,-156.74439841,0.00019177,2]
[334193100,1722822640825,-154.79103211,0.00019177,2]
[334193103,1722822640839,-1500.0,0.00019177,2]
[334193105,1722822640851,-951.80625463,0.00019177,2]
[334193107,1722822640862,-342.07838654,0.00019177,2]
[334193109,1722822640873,-286.64112626,0.00019177,2]
[334193111,1722822640885,-362.78378,0.00019178,2]
[334193114,1722822640897,-150.112233,0.000192,2]
[334193117,1722822640916,-7410.06267082,0.00019246,2]
[334193120,1722822640935,-1763.49757797,0.00019256,2]
[334193122,1722822640950,-176.32676181,0.00019256,2]
[334193125,1722822640963,-154.91991644,0.00019256,2]
[334193127,1722822640977,-2139.16821494,0.00019256,2]
[334193130,1722822640991,-187.00325775,0.00019256,2]
[334193132,1722822641004,-807.96586902,0.00019256,2]
[334193134,1722822641023,-33173.1788822,0.00019376,2]
[334193137,1722822641035,-984.99,0.00019377,2]
[334193139,1722822641047,-984.99,0.00019377,2]
[334193140,1722822641064,-150.112233,0.000194,2]
[334193142,1722822641076,-1204.09888529,0.00019431,2]
[334193144,1722822641088,-2574.61480375,0.00019441,2]
[334193146,1722822641105,-464.43626609,0.00019441,2]
[334193154,1722822641384,-665.98026557,0.00019441,2]
[334193155,1722822641396,-1061.01164336,0.00019451,2]
[334193156,1722822641408,-290.51202971,0.00019451,2]
[334193157,1722822641420,-779.72563843,0.00019451,2]
[334193158,1722822641432,-174.34056682,0.00019451,2]
[334193159,1722822641445,-155.2991435,0.00019451,2]
[334193160,1722822641456,-942.68890731,0.00019451,2]
[334193161,1722822641465,-3705.03133541,0.00019466,2]
[334193162,1722822641475,-194.87463579,0.00019477,2]
[334193163,1722822641485,-196.48473354,0.00019477,2]
[334193164,1722822641494,-600.90391779,0.00019477,2]
[334193165,1722822641503,-381.59089176,0.00019477,2]
[334193166,1722822641661,-664.2961566,0.00019477,2]
[334193167,1722822641673,-196.48473354,0.00019477,2]
[334193168,1722822641683,-346.52359711,0.00019477,2]
[334193169,1722822641693,-157.5751207,0.00019477,2]
[334193170,1722822641702,-154.79103211,0.00019477,2]
[334193172,1722822641712,-209.88574515,0.00019477,2]
[334193173,1722822641721,-159.25334668,0.00019477,2]
[334193174,1722822641731,-506.52038809,0.00019477,2]
[334193175,1722822641740,-244.86573246,0.00019477,2]
[334193176,1722822641750,-380.0,0.00019496,2]
[334193177,1722822641760,-154.79103211,0.00019547,2]
[334193178,1722822641770,-2162.60520141,0.00019547,2]
[334193180,1722822641780,-174.54270234,0.00019547,2]
[334193182,1722822641789,-372.20403797,0.00019547,2]
[334193184,1722822641799,-296.95255386,0.00019547,2]
[334193186,1722822641810,-727.58928536,0.00019547,2]
[334193187,1722822641820,-163.08091826,0.00019547,2]
[334193189,1722822641829,-154.79103211,0.00019547,2]
[334193191,1722822641839,-308.75681936,0.00019547,2]
[334193192,1722822641850,-296.95255386,0.00019547,2]
[334193193,1722822641859,-160.17752587,0.00019547,2]
[334193194,1722822641869,-336.1881449,0.00019547,2]
[334193195,1722822641878,-727.58928536,0.00019547,2]
[334193196,1722822641888,-153.98194688,0.000196,2]
[334193197,1722822641898,-1204.09888529,0.0001992,2]
[334193198,1722822641908,-3705.03133541,0.00019989,2]
[334193199,1722822641918,-25457.72006353,0.00019999,2]
[334193251,1722822644127,-453.77342341,0.00019147,2]
[334193254,1722822644140,-7321.37139128,0.00019147,2]
[334193255,1722822644150,-154.77557542,0.00019451,2]
[334193257,1722822644160,-154.79103211,0.00019477,2]
[334193259,1722822644170,-8082.37637436,0.00019999,2]
[334193261,1722822644180,-183.12142007,0.00019999,2]
[334193263,1722822644190,-1382.92970052,0.00019999,2]
[334193265,1722822644200,-154.79103211,0.00019999,2]
[334193266,1722822644210,-845.54644341,0.00019999,2]
[334193267,1722822644219,-154.79103211,0.00019999,2]
[334193268,1722822644229,-287.79610663,0.00019999,2]
[334193269,1722822644239,-154.79103211,0.00019999,2]
[334193270,1722822644249,-300.10202598,0.0002,2]
[334193271,1722822644259,-1363.34392567,0.0002,2]
[334193272,1722822644269,-154.80649189,0.0002,2]
[334193273,1722822644280,-128.60231767,0.0002,2]
[334193315,1722822647319,-273.37336231,9.9e-05,2]
[334193317,1722822647328,-150.0,0.00017743,2]
[334193319,1722822647338,-269.69558364,0.00018825,2]
[334193321,1722822647348,-1763.49757797,0.00019177,2]
[334193323,1722822647359,-159.25334668,0.00019477,2]
[334193324,1722822647368,-543.12477019,0.00019547,2]
[334193325,1722822647377,-26.18871444,0.0002,2]
[334193326,1722822647387,-222.0960515,0.0002,2]
[334193328,1722822647396,-200.07247205,0.0002,2]
[334193329,1722822647405,-435.0,0.0002,2]
[334193330,1722822647414,-564.47280113,0.0002,2]
[334193331,1722822647423,-1632.70804043,0.0002,2]
[334193332,1722822647433,-150.079,0.0002,2]
[334193333,1722822647442,-154.79103211,0.0002028,2]
[334193334,1722822647451,-144.62126359,0.0002028,2]
[334193335,1722822647463,-122.59184844,0.0002028,2]
[334193336,1722822647473,-154.79103211,0.0002028,2]
[334193337,1722822647484,-403.77458122,0.0002028,2]
[334193338,1722822647494,-210.67359257,0.0002028,2]
[334193339,1722822647504,-523.10973974,0.0002028,2]
[334193340,1722822647515,-519.64477062,0.0002028,2]
[334193341,1722822647524,-403.77458122,0.0002028,2]
[334193342,1722822647534,-399.00479548,0.0002028,2]
[334193367,1722823068636,10000.0,0.00027,120]
[334193379,1722823198768,10000.0,0.00027,120]
[334193381,1722823207161,10000.0,0.00027,120]
[334193382,1722823215311,10000.0,0.00027,120]
[334193384,1722823224599,10000.0,0.00027,120]
[334193387,1722823234852,10000.0,0.00027,120]
[334193391,1722823263599,336.0,0.00027,120]
[334193397,1722823392932,265.85,0.00018115,120]
[334193412,1722823577785,500.0,8e-05,2]
[334193420,1722823642764,16289.8174965,8e-05,2]
[334193421,1722823645784,4713.18767291,8e-05,2]
[334193422,1722823645880,2109.13684804,8e-05,2]
[334193423,1722823650671,218.38367924,8e-05,2]
[334193424,1722823654406,11980.62385084,8e-05,2]
[334193425,1722823657079,3602.54637084,8e-05,2]
[334193426,1722823660483,1493.00802259,8e-05,2]
[334193427,1722823662217,154.99455918,8e-05,2]
[334193428,1722823664497,3786.19912781,8e-05,2]
[334193429,1722823665381,404.79643592,8e-05,2]
[334193430,1722823673632,2434.2783234,8e-05,2]
[334193432,1722823681514,3786.19912781,8e-05,2]
[334193433,1722823695425,404.79643592,8e-05,2]
[334193436,1722823735877,2109.13684804,8e-05,2]
[334193437,1722823740812,4713.18767291,8e-05,2]
[334193438,1722823741668,218.38367924,8e-05,2]
[334193439,1722823744114,3602.54637084,8e-05,2]
[334193440,1722823749782,16289.8174965,8e-05,2]
[334193441,1722823762499,1547.54327277,8e-05,2]
[334193442,1722823766623,4713.18767291,8e-05,2]
[334193493,1722823819391,404.79643592,8e-05,2]
[334193496,1722823829882,16289.8174965,8e-05,2]
[334193542,1722823832282,-300.0,9.599e-05,2]
[334193543,1722823832292,-300.0,9.696e-05,2]
[334193544,1722823832302,-58.81734428,9.697e-05,2]
[334193545,1722823832315,-97.78987557,9.697e-05,2]
[334193546,1722823832325,-971.20900664,9.697e-05,2]
[334193547,1722823832336,-175.3453253,9.697e-05,2]
[334193548,1722823832347,-218.64315763,9.697e-05,2]
[334193549,1722823832357,-154.80550118,9.697e-05,2]
[334193550,1722823832368,-10.40665388,9.697e-05,2]
[334193575,1722823838089,-176.59660387,9.6e-05,2]
[334193576,1722823838101,-176.59660387,9.697e-05,2]
[334193577,1722823838110,-600.90391779,9.999e-05,2]
[334193578,1722823838119,-244.86573246,9.999e-05,2]
[334193582,1722823838245,-807.96586902,9.999e-05,2]
[334193583,1722823838255,-573.15262334,9.999e-05,2]
[334193584,1722823838267,-346.52359711,9.999e-05,2]
[334193585,1722823838277,-196.48473354,9.999e-05,2]
[334193586,1722823838287,-779.72563843,9.999e-05,2]
[334193587,1722823838297,-159.25334668,9.999e-05,2]
[334193588,1722823838308,-664.2961566,9.999e-05,2]
[334193589,1722823838318,-157.5751207,9.999e-05,2]
[334193590,1722823838329,-155.02002402,9.999e-05,2]
[334193591,1722823838340,-154.91991644,9.999e-05,2]
[334193592,1722823838350,-155.2991435,9.999e-05,2]
[334193593,1722823838359,-284.16424637,9.999e-05,2]
[334193594,1722823838368,-942.68890731,9.999e-05,2]
[334193595,1722823838379,-160.17752587,9.999e-05,2]
[334193596,1722823838388,-727.58928536,9.999e-05,2]
[334193597,1722823838398,-381.59089176,9.999e-05,2]
[334193598,1722823838408,-188.24924053,9.999e-05,2]
[334193599,1722823838420,-533.96699452,9.999e-05,2]
[334193600,1722823838430,-154.77557542,9.999e-05,2]
[334193601,1722823838443,-154.8621822,9.999e-05,2]
[334193602,1722823838454,-342.07838654,9.999e-05,2]
[334193603,1722823838466,-523.10973974,9.999e-05,2]
[334193604,1722823838477,-156.74439841,9.999e-05,2]
[334193605,1722823838488,-163.08091826,9.999e-05,2]
[334193606,1722823838498,-308.75681936,9.999e-05,2]
[334193607,1722823838524,-506.52038809,9.999e-05,2]
[334193608,1722823838534,-209.88574515,9.999e-05,2]
[334193609,1722823838543,-845.54644341,9.999e-05,2]
[334193610,1722823838552,-154.77557542,9.999e-05,2]
[334193611,1722823838562,-258.34699432,0.0001,2]
[334193612,1722823838572,-420.0,0.00010665,2]
[334193613,1722823838582,-554.2342331,0.00010938,2]
[334193614,1722823838591,-668.51,0.00010959,2]
[334193615,1722823838602,-250.0,0.00011631,2]
[334193616,1722823838613,-250.0,0.00011663,2]
[334193617,1722823838624,-250.0,0.00011695,2]
[334193618,1722823838635,-250.0,0.00011727,2]
[334193619,1722823838646,-587.0,0.00011732,2]
[334193620,1722823838656,-250.0,0.00011759,2]
[334193621,1722823838667,-250.0,0.00011791,2]
[334193622,1722823838678,-250.0,0.00011823,2]
[334193623,1722823838688,-250.0,0.00011855,2]
[334193624,1722823838697,-250.0,0.00011886,2]
[334193625,1722823838707,-250.0,0.00011918,2]
[334193626,1722823838716,-250.0,0.0001195,2]
[334193627,1722823838725,-250.0,0.00011982,2]
[334193628,1722823838736,-250.0,0.00012014,2]
[334193629,1722823838746,-250.0,0.00012046,2]
[334193630,1722823838756,-250.0,0.00012078,2]
[334193631,1722823838768,-250.0,0.0001211,2]
[334193632,1722823838778,-250.0,0.00012142,2]
[334193633,1722823838788,-250.0,0.00012173,2]
[334193634,1722823838800,-250.0,0.00012205,2]
[334193635,1722823838811,-250.0,0.00012237,2]
[334193636,1722823838820,-772.0,0.00012905,2]
[334193637,1722823838830,-3000.0,0.00013933,2]
[334193638,1722823838843,-1091.57771247,0.00014,2]
[334193639,1722823838852,-3839.08000026,0.00014005,2]
[334193640,1722823838863,-500.0,0.00014104,2]
[334193641,1722823838875,-500.0,0.00014104,2]
[334193642,1722823838886,-166.66898389,0.00014104,2]
[334193643,1722823838895,-500.0,0.00014104,2]